bitfinex-derivatives/quotes_ETHF0:USTF0_20240905
["timestamp","ask_amount","ask_price","bid_price","bid_amount"]
[1725566034672,0.42372,2360.4,2360.3,0.00636254]
[1725566034972,0.42371,2360.5,2360.3,0.00636254]
[1725566035168,1.50573138,2360.5,2360.3,0.00636254]
[1725566035376,1.08202138,2360.5,2360.3,0.00636254]
[1725566035673,1.50571138,2360.6,2360.3,0.00636254]
[1725566035878,1.08202138,2360.5,2360.3,0.00636254]
[1725566036478,1.50572138,2360.5,2360.3,0.00636254]
[1725566036669,0.4237,2360.5,2360.3,0.00636254]
[1725566036868,1.50572138,2360.5,2360.3,0.00636254]
[1725566037266,0.42372,2360.4,2360.3,0.00636254]
[1725566037469,4.71354138,2360.4,2360.3,0.00636254]
[1725566037774,10.57402,2360.4,2360.3,0.00636254]
[1725566037967,12.74062675,2360.4,2360.3,0.00636254]
[1725566038180,11.68132675,2360.4,2360.3,0.00636254]
[1725566038578,12.74062675,2360.4,2360.3,0.00636254]
[1725566039667,12.73548751,2360.4,2360.3,0.00636254]
[1725566040071,10.57402,2360.4,2360.3,0.00636254]
[1725566040272,9.5280691,2360.4,2360.3,0.00636254]
[1725566040580,2.1618491,2360.4,2360.3,8.64316254]
[1725566040883,0.00636254,2360.7,2360.6,0.42368]
[1725566041175,0.00636254,2360.7,2360.6,13.86748]
[1725566041369,1.08127633,2361.2,2360.9,0.42361]
[1725566041578,1.08127633,2361.2,2361.0,0.779]
[1725566041777,1.50485633,2361.2,2361.0,0.779]
[1725566041984,1.08127633,2361.1,2361.0,0.779]
[1725566042182,1.08127633,2361.2,2361.0,0.779]
[1725566042475,1.08127633,2361.1,2361.0,0.779]
[1725566042980,0.00636254,2361.3,2361.0,5.4378]
[1725566042981,1.08763887,2361.3,2361.0,5.4378]
[1725566043168,1.08127633,2361.2,2361.0,0.779]
[1725566043372,1.08127633,2361.1,2360.7,0.42365]
[1725566043778,1.08127633,2361.1,2360.6,7.6078]
[1725566043779,1.08127633,2361.1,2360.6,8.03147]
[1725566043987,1.08127633,2361.1,2360.7,0.42365]
[1725566044281,1.08127633,2361.1,2360.7,0.42366]
[1725566044477,1.50486633,2361.1,2360.7,0.42366]
[1725566044677,1.50486633,2361.1,2360.6,8.03147]
[1725566045277,1.50486633,2361.1,2360.6,7.6078]
[1725566045278,0.42361,2361.0,2360.6,7.6078]
[1725566045481,1.50489633,2361.0,2360.6,7.6078]
[1725566045871,1.08127633,2361.0,2360.6,8.03148]
[1725566046075,1.08127633,2361.0,2360.7,0.42366]
[1725566046284,1.50486633,2361.1,2360.7,0.42366]
[1725566046586,0.42359,2361.1,2360.6,8.03147]
[1725566046884,1.08127633,2361.1,2360.6,4.4]
[1725566047185,0.42367,2360.7,2360.5,0.7557]
[1725566047382,1.08127633,2360.9,2360.4,0.8056]
[1725566047383,1.08127633,2360.8,2360.4,0.8056]
[1725566047587,1.50492633,2360.8,2360.4,1.22931]
[1725566047788,0.42365,2360.8,2360.4,1.22931]
[1725566048079,0.42365,2360.8,2360.4,2.05651]
[1725566048683,1.08127633,2360.9,2360.7,0.42366]
[1725566048988,1.08127633,2360.9,2360.4,1.6328]
[1725566048989,4.28907633,2361.1,2360.6,4.4]
[1725566049174,0.42361,2361.0,2360.6,4.4]
[1725566049479,0.42361,2361.0,2360.4,1.6328]
[1725566049480,1.08127633,2360.9,2360.4,1.6328]
[1725566049677,1.62181613,2361.0,2360.6,4.4]
[1725566049678,1.08127633,2361.0,2360.6,4.4]
[1725566049879,0.00636254,2361.3,2361.1,0.42358]
[1725566050084,0.00636254,2361.3,2361.0,0.4236]
[1725566050280,0.00636254,2361.3,2361.0,1.6177]
[1725566050683,0.42992254,2361.3,2361.0,1.6177]
[1725566050887,0.00636254,2361.3,2361.0,1.6177]
[1725566051183,0.00636254,2361.3,2361.0,2.0413]
[1725566051384,0.00636254,2361.3,2361.0,0.8272]
[1725566051588,0.4236,2361.1,2360.7,4.82365]
[1725566051788,0.42358,2361.2,2360.8,3.63144]
[1725566051988,0.42358,2361.2,2360.9,0.42363]
[1725566052989,0.00636254,2361.3,2361.1,0.42358]
[1725566053182,0.00636254,2361.3,2361.2,0.42357]
[1725566054689,0.42992254,2361.3,2361.0,1.19749]
[1725566054880,0.42993254,2361.3,2361.0,0.7739]
[1725566055281,0.42359,2361.1,2360.9,4.4]
[1725566055484,0.42359,2361.1,2360.8,1.18184]
[1725566055687,0.42358,2361.2,2360.9,0.42363]
[1725566056491,0.42358,2361.2,2361.0,0.42361]
[1725566056889,0.80806254,2361.3,2361.1,0.42359]
[1725566057186,0.00636254,2361.3,2361.2,0.42357]
[1725566058187,0.00636254,2361.3,2360.9,4.4]
[1725566058394,0.00636254,2361.3,2361.2,0.42357]
[1725566058694,0.42993254,2361.3,2360.9,8.03141]
[1725566058894,0.00636254,2361.3,2360.9,7.6078]
[1725566059192,0.00636254,2361.3,2361.2,0.42357]
[1725566059585,0.00636254,2361.3,2361.2,4.65877]
[1725566060084,3.7718491,2361.9,2361.2,18.90194]
[1725566060085,2.42311613,2361.9,2361.2,18.90194]
[1725566060285,0.8013,2361.9,2361.6,0.42348]
[1725566060487,0.42347,2361.8,2361.5,4.4]
[1725566060795,0.42347,2361.8,2361.5,4.8235]
[1725566060984,0.8013,2361.9,2361.3,1.5949]
[1725566061184,0.42352,2361.5,2361.4,0.00636254]
[1725566061389,0.8353,2361.7,2361.4,0.00636254]
[1725566061691,3.63132,2361.5,2361.4,0.00636254]
[1725566064592,3.2078,2361.5,2361.4,0.00636254]
[1725566064793,7.86572,2361.5,2361.4,0.00636254]
[1725566064986,9.48753613,2361.5,2361.4,0.00636254]
[1725566065389,5.25313613,2361.5,2361.4,0.00636254]
[1725566065586,1.08044596,2361.5,2361.4,0.00636254]
[1725566065789,1.50396596,2361.5,2361.4,0.00636254]
[1725566065995,4.65792,2361.5,2361.4,0.00636254]
[1725566066199,5.7383691,2361.5,2361.4,0.00636254]
[1725566066395,5.73876107,2361.5,2361.4,0.00636254]
[1725566066601,6.27973613,2361.5,2361.4,0.00636254]
[1725566067488,10.0275691,2361.5,2361.4,0.00636254]
[1725566068387,5.7931691,2361.5,2361.4,0.00636254]
[1725566068588,0.42352,2361.5,2361.4,0.00636254]
[1725566068900,4.65792,2361.5,2361.4,0.00636254]
[1725566069400,2.5853691,2361.5,2361.4,0.00636254]
[1725566069591,6.8197691,2361.5,2361.4,0.00636254]
[1725566071399,14.42497844,2361.5,2361.4,0.00636254]
[1725566071802,10.2344,2361.5,2360.5,6.4978]
[1725566072097,1.08195273,2360.6,2360.1,4.0707]
[1725566072299,1.08195273,2360.6,2359.6,8.00762]
[1725566072300,0.42383,2359.8,2359.6,4.146]
[1725566072492,0.42383,2359.8,2359.5,0.42387]
[1725566072693,1.51212527,2359.9,2359.5,0.42388]
[1725566072991,1.08831527,2359.9,2359.7,0.42384]
[1725566073196,0.00636254,2359.9,2359.8,0.42382]
[1725566073397,1.08831527,2359.9,2359.7,0.42383]
[1725566073696,0.00636254,2359.9,2359.7,0.42383]
[1725566073896,0.00636254,2359.9,2359.8,0.42382]
[1725566074301,1.51213527,2359.9,2359.6,6.92165]
[1725566074696,1.51213527,2359.9,2359.6,3.71385]
[1725566074898,1.08831527,2359.9,2359.7,0.42384]
[1725566075097,1.08831527,2359.9,2359.6,3.71385]
[1725566075300,1.08831527,2359.9,2359.7,0.42384]
[1725566075707,1.08831527,2359.9,2359.6,3.71385]
[1725566076206,1.08831527,2359.9,2359.6,3.29]
[1725566076503,1.08831527,2359.9,2359.4,0.00636254]
[1725566076504,0.42387,2359.6,2359.4,0.00636254]
[1725566076706,1.5056914,2359.5,2359.4,0.00636254]
[1725566076905,2.58778547,2359.5,2359.4,0.00636254]
[1725566077106,7.36716184,2359.5,2359.4,0.00636254]
[1725566077412,12.82384457,2359.5,2359.4,0.00636254]
[1725566077604,2.16156457,2359.5,2359.4,0.00636254]
[1725566077800,2.04511499,2359.5,2359.4,0.00636254]
[1725566078098,0.42388,2359.5,2359.4,0.00636254]
[1725566078301,2.04411079,2359.5,2359.4,0.00636254]
[1725566079114,4.66228,2359.5,2359.4,0.00636254]
[1725566079315,20.33845717,2359.5,2358.6,3.71404]
[1725566079514,4.28726556,2359.3,2358.7,2.02421]
[1725566079709,4.28726556,2359.3,2358.6,3.29]
[1725566079710,1.07946556,2359.1,2358.5,3.2078]
[1725566080025,2.67903834,2359.2,2358.4,3.71406]
[1725566080026,1.07946556,2358.9,2358.4,3.71406]
[1725566080317,1.05978,2359.4,2358.8,6.4978]
[1725566080318,1.28689529,2359.4,2358.8,6.4978]
[1725566080524,3.12871184,2359.8,2358.5,4.2392]
[1725566080525,1.0858281,2359.9,2359.8,0.42382]
[1725566080715,0.00636254,2359.9,2359.8,0.42382]
[1725566081023,0.00636254,2359.9,2359.8,11.43272]
[1725566081219,0.00636254,2359.9,2359.8,12.20582]
[1725566081420,0.00636254,2359.9,2359.8,1.5444]
[1725566082920,0.42384,2359.8,2359.6,0.00636254]
[1725566083230,0.42383,2359.8,2359.6,0.00636254]
[1725566083418,0.00636254,2359.9,2359.6,0.00636254]
[1725566083617,0.42384,2359.7,2359.6,0.00636254]
[1725566083820,5.16406388,2359.7,2359.6,0.00636254]
[1725566084017,4.66144,2359.7,2359.6,0.00636254]
[1725566084620,5.74090556,2359.7,2359.6,0.00636254]
[1725566085026,6.56740556,2359.7,2359.6,0.00636254]
[1725566085221,5.48794,2359.7,2359.6,0.00636254]
[1725566085822,5.0641,2359.7,2359.6,0.00636254]
[1725566086012,5.48794,2359.7,2359.6,0.00636254]
[1725566086928,6.56525698,2359.7,2359.6,0.00636254]
[1725566087229,11.48794,2359.7,2359.6,0.00636254]
[1725566087426,5.48794,2359.7,2359.6,0.00636254]
[1725566088426,1.25034,2359.7,2359.6,0.00636254]
[1725566088631,0.42384,2359.7,2359.6,0.00636254]
[1725566088817,1.06590254,2359.9,2359.6,0.00636254]
[1725566088818,0.00636254,2359.9,2359.6,0.00636254]
[1725566089024,0.42383,2359.8,2359.6,0.00636254]
[1725566089530,0.42384,2359.7,2359.6,0.00636254]
[1725566089925,4.66144,2359.7,2359.6,0.00636254]
[1725566090119,0.42384,2359.7,2359.6,0.00636254]
[1725566090319,3.21416254,2359.9,2359.8,0.42382]
[1725566090528,0.00636254,2359.9,2359.8,4.82382]
[1725566090732,0.00636254,2359.9,2359.8,12.26922]
[1725566092026,3.63153,2360.4,2359.9,0.42379]
[1725566092227,0.42375,2360.3,2359.8,7.6078]
[1725566092431,0.42375,2360.3,2359.9,0.4238]
[1725566092726,3.2078,2360.4,2360.1,0.42376]
[1725566092931,3.2078,2360.4,2360.2,1.18335]
[1725566093245,1.7742126,2360.9,2360.2,1.18335]
[1725566093246,8.82519346,2361.0,2360.3,8.6368]
[1725566093424,4.03868155,2361.4,2360.8,7.6078]
[1725566093629,0.42358,2361.2,2360.8,4.4]
[1725566093927,0.42359,2361.1,2360.8,4.4]
[1725566094337,0.00636254,2361.2,2360.8,4.4]
[1725566094629,0.00636254,2361.2,2360.7,0.00636254]
[1725566094630,0.42364,2360.8,2360.7,0.00636254]
[1725566095833,4.65964,2360.8,2360.7,0.00636254]
[1725566096233,11.71876,2360.8,2360.7,0.00636254]
[1725566096430,10.65964,2360.8,2360.7,0.00636254]
[1725566096731,0.42373,2360.3,2360.2,3.2078]
[1725566096933,0.42373,2360.3,2359.9,4.82379]
[1725566097122,0.42375,2360.2,2359.9,4.4]
[1725566097629,0.42376,2360.2,2359.9,4.4]
[1725566097831,1.05925,2360.5,2359.8,3.21416254]
[1725566097832,0.4238,2360.0,2359.8,3.21416254]
[1725566098022,1.0593,2360.4,2359.8,3.21416254]
[1725566098023,0.42378,2360.1,2359.8,3.21416254]
[1725566098227,0.42381,2359.9,2359.8,0.00636254]
[1725566100223,11.44961,2359.9,2359.8,0.00636254]
[1725566100429,0.42383,2359.8,2359.5,0.42387]
[1725566100622,0.42385,2359.7,2359.3,4.8239]
[1725566100826,0.7882,2359.9,2359.3,4.8239]
[1725566100827,0.7882,2359.9,2359.3,4.4]
[1725566101030,0.7882,2359.9,2359.4,3.2078]
[1725566101229,0.7517,2360.0,2359.6,4.4]
[1725566101427,0.7517,2360.0,2359.6,0.00636254]
[1725566101428,0.75806254,2360.0,2359.6,0.00636254]
[1725566101623,0.42384,2359.7,2359.6,0.00636254]
[1725566101833,0.75806254,2360.0,2359.6,0.00636254]
[1725566102328,0.00636254,2360.0,2359.9,0.42381]
[1725566102524,0.00636254,2360.0,2359.8,0.42382]
[1725566102729,0.00636254,2360.0,2359.9,0.42381]
[1725566102932,0.00636254,2360.0,2359.8,0.42381]
[1725566103231,0.00636254,2360.0,2359.7,1.17703]
[1725566103430,0.42383,2359.8,2359.6,0.00636254]
[1725566103630,0.42381,2359.9,2359.6,0.43021254]
[1725566103930,2.70488184,2360.5,2359.6,0.43021254]
[1725566103931,0.42366,2360.7,2360.3,0.42372]
[1725566104125,0.42373,2360.4,2360.0,0.42378]
[1725566104433,1.0593,2360.4,2359.9,3.961]
[1725566104728,0.7658,2360.3,2359.9,4.3848]
[1725566104933,0.42375,2360.2,2359.9,3.961]
[1725566105333,0.42375,2360.2,2359.9,4.3848]
[1725566105523,0.00636254,2360.3,2360.2,0.42375]
[1725566105723,0.00636254,2360.3,2360.2,8.03155]
[1725566106030,0.00636254,2360.3,2360.2,18.26835]
[1725566107037,0.00636254,2360.3,2360.2,12.26835]
[1725566108232,0.00636254,2360.3,2360.2,11.8446]
[1725566108532,0.00636254,2360.3,2360.2,12.26835]
[1725566109438,0.00636254,2360.3,2360.0,0.42378]
[1725566110236,0.43009254,2360.3,2359.9,6.32299]
[1725566110538,0.42383,2359.8,2359.6,0.00636254]
[1725566110733,2.13670698,2360.2,2359.6,0.00636254]
[1725566110734,0.42382,2359.9,2359.6,0.00636254]
[1725566110936,0.4238,2360.0,2359.6,5.22886254]
[1725566111428,3.37951698,2360.2,2359.8,3.2078]
[1725566111627,1.07731698,2360.1,2359.8,3.2078]
[1725566111830,0.42381,2359.9,2359.8,3.2078]
[1725566112535,0.4238,2360.0,2359.8,3.2078]
[1725566112724,3.92139834,2360.2,2359.8,3.2078]
[1725566112725,1.07731698,2360.2,2359.8,3.2078]
[1725566112928,0.42378,2360.1,2359.9,4.4]
[1725566113127,0.42377,2360.1,2359.9,4.4]
[1725566113525,1.07731698,2360.1,2359.9,4.4]
[1725566113731,0.00636254,2360.3,2360.0,4.2376]
[1725566113934,0.00636254,2360.3,2360.2,8.03155]
[1725566114135,1.07731698,2360.8,2360.7,0.42366]
[1725566114333,1.07731698,2361.1,2360.9,0.42363]
[1725566114541,2.58512457,2361.3,2360.6,4.4]
[1725566114542,1.07731698,2361.3,2361.2,0.42357]
[1725566114839,1.07731698,2361.6,2361.2,6.0]
[1725566115141,0.00636254,2361.6,2361.5,3.63132]
[1725566115340,2.16156457,2362.0,2361.5,9.2078]
[1725566115341,1.07731698,2362.0,2361.5,9.2078]
[1725566115538,1.61919834,2362.2,2361.9,8.03124]
[1725566115739,4.86644641,2362.5,2361.9,8.03124]
[1725566115740,1.07731698,2362.4,2361.9,8.03124]
[1725566115940,1.07731698,2362.4,2361.9,7.6078]
[1725566116446,1.07731698,2362.3,2361.9,7.6078]
[1725566116738,1.07731698,2362.3,2361.8,3.2078]
[1725566117235,1.50069698,2362.3,2361.8,3.2078]
[1725566117436,1.07731698,2362.3,2361.9,4.4]
[1725566117636,1.62552461,2362.4,2361.6,0.8174]
[1725566117637,0.00632627,2362.4,2362.2,4.4]
[1725566118239,0.42337,2362.3,2361.9,4.4]
[1725566118635,0.4234,2362.2,2361.9,4.4]
[1725566119144,0.42338,2362.3,2361.9,4.4]
[1725566119642,0.42337,2362.3,2361.9,4.4]
[1725566119837,0.00632627,2362.4,2361.9,4.4]
[1725566119838,0.4234,2362.2,2361.9,4.4]
[1725566120143,0.42341,2362.1,2361.9,4.4]
[1725566120341,0.00632627,2362.4,2361.7,7.6078]
[1725566120342,0.42341,2362.2,2361.7,7.6078]
[1725566120531,0.42968627,2362.4,2362.0,7.6078]
[1725566120737,0.00632627,2362.4,2362.0,4.4]
[1725566120935,0.4234,2362.2,2362.0,4.4]
[1725566121140,0.42346,2361.8,2361.7,3.2078]
[1725566121339,0.4234,2362.2,2361.8,0.42346]
[1725566121542,1.08364325,2362.4,2361.7,8.03127]
[1725566121543,0.00632627,2362.4,2361.7,8.03127]
[1725566121742,3.21412627,2362.4,2361.8,0.42346]
[1725566121936,3.63748627,2362.4,2361.7,7.6078]
[1725566122136,0.42339,2362.3,2361.8,0.42346]
[1725566122541,0.42339,2362.2,2361.8,0.42346]
[1725566122742,0.00632627,2362.4,2362.1,0.42341]
[1725566123133,0.00632627,2362.4,2362.0,7.6078]
[1725566123440,0.42969627,2362.4,2362.0,4.4]
[1725566123636,0.00632627,2362.4,2362.0,7.6078]
[1725566123934,0.42968627,2362.4,2362.0,8.03122]
[1725566124248,0.42968627,2362.4,2362.0,7.6078]
[1725566124440,0.42968627,2362.4,2361.4,1.86472]
[1725566124441,1.06476627,2362.4,2361.7,7.6078]
[1725566124640,0.00632627,2362.4,2362.0,7.6078]
[1725566124846,2.67744834,2362.8,2362.0,7.6078]
[1725566124847,0.7827,2363.0,2362.3,7.6078]
[1725566125045,0.42324,2363.1,2362.7,4.8233]
[1725566125343,3.23449834,2363.5,2362.7,4.4]
[1725566125344,6.10952159,2363.5,2362.7,4.4]
[1725566125646,0.42326,2363.0,2362.7,4.4]
[1725566126147,4.8231,2363.5,2362.6,3.2141488]
[1725566126148,0.42329,2362.8,2362.6,3.2141488]
[1725566126345,0.4233,2362.7,2362.6,0.0063488]
[1725566127345,1.05811,2363.1,2362.6,0.0063488]
[1725566127346,0.4233,2362.8,2362.6,0.0063488]
[1725566128049,0.4233,2362.7,2362.6,0.0063488]
[1725566128551,0.4233,2362.8,2362.6,0.0063488]
[1725566129746,3.2078,2363.2,2362.6,0.0063488]
[1725566130047,3.2078,2363.2,2362.7,4.4]
[1725566130252,0.42324,2363.1,2362.8,0.42328]
[1725566130450,0.4232,2363.3,2362.9,3.2078]
[1725566130652,0.4232,2363.3,2363.0,4.4]
[1725566131140,0.42322,2363.2,2363.0,4.4]
[1725566131751,1.05795,2363.4,2362.9,3.2078]
[1725566131947,0.42324,2363.1,2362.9,3.2078]
[1725566132148,0.42325,2363.0,2362.7,5.60399]
[1725566132348,0.42327,2362.9,2362.6,3.6374588]
[1725566132548,3.2078,2363.2,2362.6,3.2141488]
[1725566132549,0.42329,2362.8,2362.6,3.2141488]
[1725566132751,0.42343,2362.0,2361.9,4.4]
[1725566132951,0.42343,2362.1,2361.9,4.4]
[1725566133157,0.42343,2362.0,2361.9,4.4]
[1725566133549,0.42342,2362.1,2361.9,4.4]
[1725566133751,0.4234,2362.2,2361.9,4.4]
[1725566134546,0.42341,2362.2,2361.9,4.4]
[1725566134852,0.00630302,2362.3,2361.9,4.4]
[1725566134853,0.42341,2362.1,2361.9,4.4]
[1725566135356,0.4234,2362.2,2361.9,4.4]
[1725566135554,0.42968302,2362.3,2361.9,4.82343]
[1725566135860,0.00630302,2362.3,2362.2,7.6078]
[1725566136151,0.42329,2362.8,2362.4,0.42334]
[1725566136458,8.0693,2363.0,2362.5,4.4]
[1725566136459,0.7655,2363.0,2362.5,4.4]
[1725566136752,0.42327,2362.9,2362.5,4.82333]
[1725566136951,0.42327,2362.9,2362.5,8.03113]
[1725566137162,1.18876,2363.0,2362.6,0.42332]
[1725566137356,0.42327,2362.9,2362.5,8.03113]
[1725566137854,0.42331,2362.7,2362.5,4.4]
[1725566138157,0.42329,2362.8,2362.5,8.6328]
[1725566138357,0.42332,2362.6,2362.5,4.4]
[1725566138652,0.42332,2362.6,2362.2,0.758]
[1725566138653,0.42335,2362.5,2362.2,5.158]
[1725566138854,0.42337,2362.3,2362.2,4.4]
[1725566139050,0.42337,2362.3,2362.1,0.8209]
[1725566139051,0.42337,2362.4,2362.1,0.8209]
[1725566139446,0.42338,2362.3,2362.1,0.8209]
[1725566140054,0.42343,2362.0,2361.9,4.4]
[1725566140753,0.42345,2361.9,2361.8,3.2141488]
[1725566140959,0.42344,2362.0,2361.8,0.0063488]
[1725566141149,0.42344,2362.0,2361.9,3.2078]
[1725566141349,0.8044,2362.2,2361.9,3.2078]
[1725566141553,1.2278,2362.2,2361.9,3.2078]
[1725566141862,1.22781,2362.2,2361.9,3.63124]
[1725566142058,5.79259,2362.5,2362.0,4.4]
[1725566142059,1.18455,2362.5,2362.0,4.4]
[1725566142258,1.18455,2362.5,2362.2,4.4]
[1725566142259,0.42336,2362.4,2362.2,4.4]
[1725566142453,0.7612,2362.5,2362.2,4.4]
[1725566142454,1.18455,2362.5,2362.2,4.4]
[1725566142748,5.07046,2362.8,2362.2,4.82339]
[1725566142749,0.42333,2362.6,2362.2,4.82339]
[1725566143059,4.0122,2362.8,2362.2,7.6078]
[1725566143259,0.4233,2362.7,2362.5,7.6078]
[1725566143560,1.22769,2362.8,2362.5,8.03114]
[1725566143759,0.8044,2362.8,2362.5,4.4]
[1725566143956,0.8044,2362.8,2362.2,7.6078]
[1725566144156,1.05827,2362.7,2362.2,3.2078]
[1725566144361,0.42337,2362.4,2362.2,3.2078]
[1725566144663,0.42335,2362.5,2362.2,8.03119]
[1725566145351,0.42336,2362.4,2362.2,7.6078]
[1725566145549,0.42335,2362.5,2362.2,8.03119]
[1725566145946,0.42336,2362.4,2362.2,7.6078]
[1725566146460,0.42335,2362.5,2362.2,8.03119]
[1725566147454,0.42341,2362.1,2362.0,4.4]
[1725566147649,1.0584,2362.4,2362.0,4.4]
[1725566147959,1.0584,2362.4,2361.9,3.2078]
[1725566147960,0.42343,2362.0,2361.9,3.2078]
[1725566148657,0.42345,2361.9,2361.8,0.0063488]
[1725566149049,4.65705,2361.9,2361.8,0.0063488]
[1725566149252,5.71567,2361.9,2361.8,0.0063488]
[1725566149453,8.92347,2361.9,2361.8,0.0063488]
[1725566149947,15.66887,2361.9,2361.8,0.0063488]
[1725566150152,15.66887,2361.9,2361.1,3.2078]
[1725566150153,0.42355,2361.4,2361.1,7.6078]
[1725566150347,0.7454,2361.9,2361.1,7.6078]
[1725566150554,0.42349,2361.7,2361.5,4.4]
[1725566150755,0.42347,2361.8,2361.5,4.4]
[1725566151258,0.0063488,2361.9,2361.7,4.4]
[1725566151450,0.0063488,2361.9,2361.7,4.82347]
[1725566151754,0.0063488,2361.9,2361.7,4.4]
[1725566151755,0.4297988,2361.9,2361.7,4.4]
[1725566152149,0.0063488,2361.9,2361.5,4.4]
[1725566152364,0.0063488,2361.9,2361.4,3.2141488]
[1725566152365,0.7945,2361.8,2361.4,3.2141488]
[1725566152655,0.42352,2361.5,2361.4,3.2141488]
[1725566152860,0.42352,2361.5,2361.4,0.0063488]
[1725566153157,0.42351,2361.6,2361.4,0.0063488]
[1725566153656,0.42352,2361.5,2361.4,0.0063488]
[1725566154556,2.93051698,2361.8,2361.4,0.0063488]
[1725566154557,0.42351,2361.6,2361.4,0.0063488]
[1725566154755,0.42351,2361.6,2361.5,3.2078]
[1725566155150,1.08366578,2361.9,2361.5,11.8422]
[1725566155352,0.4297988,2361.9,2361.6,1.22799]
[1725566155858,0.4297988,2361.9,2361.6,0.8045]
[1725566156046,0.4297988,2361.9,2361.6,1.22799]
[1725566156657,0.4297988,2361.9,2361.6,0.8045]
[1725566156961,0.42347,2361.8,2361.6,0.8045]
[1725566157355,0.0063488,2361.9,2361.6,0.8045]
[1725566157564,0.0063488,2361.9,2361.7,0.42347]
[1725566157855,0.0063488,2361.9,2361.8,12.26566]
[1725566158056,0.796,2362.4,2361.8,13.6078]
[1725566158057,1.07731698,2362.4,2361.8,13.6078]
[1725566158249,2.16156457,2362.7,2362.3,7.6078]
[1725566158250,1.07731698,2362.7,2362.3,7.6078]
[1725566158450,1.07731698,2362.8,2362.6,7.6078]
[1725566158657,1.07731698,2362.8,2362.6,4.4]
[1725566158658,1.07731698,2362.7,2362.6,4.4]
[1725566158859,1.07731698,2362.7,2362.6,4.82332]
[1725566159060,1.07731698,2362.7,2362.6,9.05612]
[1725566159553,1.07731698,2362.7,2362.6,11.8406]
[1725566159554,1.61919834,2362.7,2362.6,11.8406]
[1725566159759,2.04249834,2362.7,2362.6,8.6328]
[1725566159953,0.42333,2362.6,2362.4,5.1767]
[1725566160150,1.62871758,2362.5,2362.4,5.1767]
[1725566160349,1.6287377,2362.5,2362.4,5.60006]
[1725566160560,1.6287377,2362.5,2362.4,5.1767]
[1725566160749,1.6287377,2362.5,2362.4,5.60006]
[1725566160945,1.6287377,2362.5,2362.4,9.83286]
[1725566161150,1.6287377,2362.5,2362.4,5.60006]
[1725566161350,2.59502993,2362.6,2362.4,9.4095]
[1725566161559,2.0526462,2362.5,2362.4,5.1767]
[1725566161859,0.42334,2362.5,2362.1,4.4]
[1725566162058,0.42334,2362.5,2362.1,4.8234]
[1725566162059,1.62915489,2362.2,2362.1,4.8234]
[1725566162254,1.62915489,2362.2,2362.1,4.4]
[1725566162748,3.12827184,2362.2,2362.1,4.4]
[1725566163259,3.12827184,2362.3,2362.1,4.4]
[1725566163556,1.62924813,2362.2,2362.1,4.4]
[1725566163754,2.59572917,2362.2,2362.1,4.4]
[1725566163950,3.12827184,2362.2,2362.1,4.4]
[1725566164152,0.42343,2362.0,2361.9,0.8084]
[1725566164349,2.0528041,2362.0,2361.9,0.8084]
[1725566164562,1.6293741,2362.0,2361.9,0.42345]
[1725566164775,1.62938837,2362.0,2361.8,8.78115]
[1725566164960,2.05283837,2361.9,2361.8,4.4]
[1725566165163,2.5959488,2361.9,2361.8,4.4]
[1725566165457,1.48232,2361.5,2361.4,0.0063488]
[1725566165663,2.59498056,2361.5,2361.4,0.0063488]
[1725566166860,2.17146056,2361.5,2361.4,0.0063488]
[1725566167062,2.0517812,2361.5,2361.4,0.0063488]
[1725566167260,2.05177195,2361.5,2361.4,0.0063488]
[1725566167455,0.42352,2361.5,2361.4,0.0063488]
[1725566167860,1.62805378,2361.5,2361.4,0.4298888]
[1725566168072,2.05157378,2361.5,2361.4,0.0063488]
[1725566168364,7.88818056,2361.5,2361.4,0.0063488]
[1725566168565,0.42356,2361.3,2361.0,0.4236]
[1725566168866,1.0849181,2361.2,2361.1,3.63139]
[1725566169068,1.0849181,2361.2,2361.1,0.42359]
[1725566169363,2.17618501,2361.4,2361.3,1.05889]
[1725566169364,1.05306395,2361.4,2361.3,1.05889]
[1725566169566,3.24991013,2362.1,2361.3,1.05889]
[1725566169567,1.62733987,2361.9,2361.6,0.4235]
[1725566169867,2.59328621,2361.9,2361.8,4.4]
[1725566170166,2.16983621,2362.0,2361.8,4.4]
[1725566170361,1.62760796,2362.0,2361.9,3.63125]
[1725566170566,1.62760796,2362.0,2361.7,0.0063488]
[1725566170869,2.16983621,2362.1,2361.7,0.0063488]
[1725566170870,2.05102796,2362.1,2361.8,0.42345]
[1725566171460,1.62760796,2362.0,2361.8,0.42345]
[1725566171659,1.62760796,2362.0,2361.7,3.2141488]
[1725566171866,1.62760796,2362.0,2361.9,0.42345]
[1725566172256,2.05102796,2362.1,2361.8,0.42345]
[1725566172461,2.05103796,2362.0,2361.8,0.42345]
[1725566172661,2.05103796,2362.0,2361.7,3.6376188]
[1725566172864,2.05103796,2362.0,2361.8,0.42346]
[1725566173062,1.62760796,2362.0,2361.8,0.42346]
[1725566173258,2.05103796,2362.0,2361.7,3.6376188]
[1725566173458,1.62760796,2361.9,2361.8,0.42346]
[1725566173670,1.62760796,2362.0,2361.9,0.42345]
[1725566173873,1.62760796,2362.0,2361.8,4.2336]
[1725566173874,0.42342,2362.1,2361.8,0.42345]
[1725566174069,1.6282207,2362.5,2362.3,1.05844]
[1725566174370,1.6282207,2362.8,2362.4,8.4177]
[1725566174666,1.6282207,2362.8,2362.6,0.42332]
[1725566175058,1.6282207,2362.8,2362.7,3.6311]
[1725566175261,1.6282207,2362.9,2362.8,0.42329]
[1725566175462,1.6282207,2363.1,2362.8,4.232]
[1725566175763,1.6282207,2363.1,2362.9,0.42326]
[1725566176368,1.6282207,2363.1,2363.0,4.4]
[1725566176678,2.0514207,2363.3,2363.0,8.03104]
[1725566177165,1.6282207,2363.3,2363.0,8.03104]
[1725566177370,1.6282207,2363.3,2363.1,0.42323]
[1725566177575,1.6282207,2363.3,2363.0,7.6078]
[1725566177761,1.6282207,2363.3,2363.1,0.42322]
[1725566177965,1.6019,2363.4,2363.1,3.2078]